{"text_format":"3","workbook":"xlsx","n_sheets":2,"sheets":["Lista do Professor"," Dados da Lista"],"not_rendered":{"defined_names":6},"read":"whole","date_system":"1900"}

{"sheet":"Lista do Professor","index":0,"n_rows":10,"n_cols":10,"rows_kept":10,"merged":[[0,1,0,2],[0,4,0,8],[2,9,6,9]]}
[null,"Lista do Professor",null,"Dados da Lista","A legenda de cor para o Status é nesta célula: Não iniciado é o estilo normal, Em andamento é R=91 G=133 B=49, Conclusão prevista para hoje é R=118 G=88 B=0, Em espera é R=109 G=66 B=111, Concluído é Tachado, Cancelado é R=191 G=191 B=191, e Em atraso é R=191 G=33 B=28."]
[null,"ITEM","CATEGORIA","DATA DE INÍCIO","DATA DE CONCLUSÃO","DIAS RESTANTES","STATUS","ANOTAÇÕES"]
[null,"Limpar gavetas","Escritório",{"$f":"DATE(YEAR(TODAY()),MONTH(TODAY())-1,6)","v":"2018-04-06"},{"$f":"DATE(YEAR(TODAY()),MONTH(TODAY())-1,16)","v":"2018-04-16"},{"$f":"IFERROR(IF(COUNT(Lista[[#This Row],[DATA DE INÍCIO]]:Lista[[#This Row],[DATA DE CONCLUSÃO]])<>2,\"\",IF(OR(Lista[[#This Row],[STATUS]]=\"Concluído\",Lista[[#This Row],[STATUS]]=\"Cancelado\",Lista[[#This Row],[STATUS]]=\"Em espera\"),\"\",Lista[[#This Row],[DATA DE CONCLUSÃO]]-TODAY())),\"\")","v":""},"Concluído",null,null,"A segmentação de dados do Status está nessa célula. Para filtrar a lista por Status, selecione um status da segmentação de dados. Pressione e segure a tecla Ctrl para selecionar várias opções."]
[null,"Encomendar adesivos","Materiais",{"$f":"DATE(YEAR(TODAY()),MONTH(TODAY())-1,11)","v":"2018-04-11"},{"$f":"DATE(YEAR(TODAY()),MONTH(TODAY())-1,21)","v":"2018-04-21"},{"$f":"IFERROR(IF(COUNT(Lista[[#This Row],[DATA DE INÍCIO]]:Lista[[#This Row],[DATA DE CONCLUSÃO]])<>2,\"\",IF(OR(Lista[[#This Row],[STATUS]]=\"Concluído\",Lista[[#This Row],[STATUS]]=\"Cancelado\",Lista[[#This Row],[STATUS]]=\"Em espera\"),\"\",Lista[[#This Row],[DATA DE CONCLUSÃO]]-TODAY())),\"\")","v":""},"Concluído"]
[null,"Piso limpo e encerado","Outros",{"$f":"DATE(YEAR(TODAY()),MONTH(TODAY()-1),DAY(TODAY())-25)","v":"2018-04-14"},{"$f":"DATE(YEAR(TODAY()),MONTH(TODAY())-1,26)","v":"2018-04-26"},{"$f":"IFERROR(IF(COUNT(Lista[[#This Row],[DATA DE INÍCIO]]:Lista[[#This Row],[DATA DE CONCLUSÃO]])<>2,\"\",IF(OR(Lista[[#This Row],[STATUS]]=\"Concluído\",Lista[[#This Row],[STATUS]]=\"Cancelado\",Lista[[#This Row],[STATUS]]=\"Em espera\"),\"\",Lista[[#This Row],[DATA DE CONCLUSÃO]]-TODAY())),\"\")","v":""},"Concluído"]
[null,"Etiquetas com nomes criadas","Materiais",{"$f":"DATE(YEAR(TODAY()),MONTH(TODAY())-1,21)","v":"2018-04-21"},{"$f":"DATE(YEAR(TODAY()),MONTH(TODAY())-1,1)","v":"2018-04-01"},{"$f":"IFERROR(IF(COUNT(Lista[[#This Row],[DATA DE INÍCIO]]:Lista[[#This Row],[DATA DE CONCLUSÃO]])<>2,\"\",IF(OR(Lista[[#This Row],[STATUS]]=\"Concluído\",Lista[[#This Row],[STATUS]]=\"Cancelado\",Lista[[#This Row],[STATUS]]=\"Em espera\"),\"\",Lista[[#This Row],[DATA DE CONCLUSÃO]]-TODAY())),\"\")","v":""},"Em espera"]
[null,"Avaliar relatórios escritos do trimestre","Avaliações",{"$f":"DATE(YEAR(TODAY()),MONTH(TODAY())-1,26)","v":"2018-04-26"},{"$f":"TODAY()-5","v":"2018-05-04"},{"$f":"IFERROR(IF(COUNT(Lista[[#This Row],[DATA DE INÍCIO]]:Lista[[#This Row],[DATA DE CONCLUSÃO]])<>2,\"\",IF(OR(Lista[[#This Row],[STATUS]]=\"Concluído\",Lista[[#This Row],[STATUS]]=\"Cancelado\",Lista[[#This Row],[STATUS]]=\"Em espera\"),\"\",Lista[[#This Row],[DATA DE CONCLUSÃO]]-TODAY())),\"\")","v":-5},"Em atraso"]
[null,"Lembrete de email para as guias de permissão","Chamadas telefônicas",{"$f":"DATE(YEAR(TODAY()),MONTH(TODAY()),1)","v":"2018-05-01"},{"$f":"TODAY()","v":"2018-05-09"},{"$f":"IFERROR(IF(COUNT(Lista[[#This Row],[DATA DE INÍCIO]]:Lista[[#This Row],[DATA DE CONCLUSÃO]])<>2,\"\",IF(OR(Lista[[#This Row],[STATUS]]=\"Concluído\",Lista[[#This Row],[STATUS]]=\"Cancelado\",Lista[[#This Row],[STATUS]]=\"Em espera\"),\"\",Lista[[#This Row],[DATA DE CONCLUSÃO]]-TODAY())),\"\")","v":""},"Cancelado"]
[null,"Avaliar relatórios orais","Escritório",{"$f":"DATE(YEAR(TODAY()),MONTH(TODAY()),7)","v":"2018-05-07"},{"$f":"DATE(YEAR(TODAY()),MONTH(TODAY()),17)","v":"2018-05-17"},{"$f":"IFERROR(IF(COUNT(Lista[[#This Row],[DATA DE INÍCIO]]:Lista[[#This Row],[DATA DE CONCLUSÃO]])<>2,\"\",IF(OR(Lista[[#This Row],[STATUS]]=\"Concluído\",Lista[[#This Row],[STATUS]]=\"Cancelado\",Lista[[#This Row],[STATUS]]=\"Em espera\"),\"\",Lista[[#This Row],[DATA DE CONCLUSÃO]]-TODAY())),\"\")","v":8},"Em andamento"]
[null,"Apontar lápis","Materiais",{"$f":"DATE(YEAR(TODAY()),MONTH(TODAY()),11)","v":"2018-05-11"},{"$f":"DATE(YEAR(TODAY()),MONTH(TODAY()),10)","v":"2018-05-10"},{"$f":"IFERROR(IF(COUNT(Lista[[#This Row],[DATA DE INÍCIO]]:Lista[[#This Row],[DATA DE CONCLUSÃO]])<>2,\"\",IF(OR(Lista[[#This Row],[STATUS]]=\"Concluído\",Lista[[#This Row],[STATUS]]=\"Cancelado\",Lista[[#This Row],[STATUS]]=\"Em espera\"),\"\",Lista[[#This Row],[DATA DE CONCLUSÃO]]-TODAY())),\"\")","v":1},"Em andamento"]

{"sheet":" Dados da Lista","index":1,"n_rows":13,"n_cols":3,"rows_kept":13}
[null,"Dados da Lista","Lista do Professor"]
[null,"Categoria"]
[null,"Escritório"]
[null,"Materiais"]
[null,"Itens a comprar"]
[null,"Chamadas telefônicas"]
[null,"Novas ideias"]
[null,"Avaliações"]
[null,"Equipe"]
[null,"Intervenções"]
[null,"Computador"]
[null,"Pessoal"]
[null,"Outros"]